[Event "Masters Tournament (MTO)"]
[Site "Biel, Switzerland"]
[Date "2026.07.13"]
[Round "1.1"]
[White "Ganguly, Surya Shekhar"]
[Black "Kwiatkowski, Jakub"]
[Result "1-0"]
[TimeControl "100+30+30sec/move"]
[WhiteTitle "-"]
[BlackTitle "-"]
[WhiteFideId "5002150"]
[BlackFideId "1348736"]
[WhiteElo "2578"]
[BlackElo "2107"]

1. Nf3 {[%clk 01:40:52]} {[%emt 00:00:04]} Nf6 {[%clk 01:40:45]} {[%emt
00:00:16]} 2. c4 {[%clk 01:41:11]} {[%emt 00:00:11]} e6 {[%clk 01:41:06]}
{[%emt 00:00:10]} 3. Nc3 {[%clk 01:41:22]} {[%emt 00:00:19]} d5 {[%clk
01:40:53]} {[%emt 00:00:43]} 4. e3 {[%clk 01:41:44]} {[%emt 00:00:08]} c5
{[%clk 01:39:27]} {[%emt 00:01:56]} 5. cxd5 {[%clk 01:39:36]} {[%emt 00:02:38]}
exd5 {[%clk 01:39:44]} {[%emt 00:00:12]} 6. d4 {[%clk 01:39:18]} {[%emt
00:00:49]} Nc6 {[%clk 01:39:53]} {[%emt 00:00:21]} 7. Bb5 {[%clk 01:37:14]}
{[%emt 00:02:34]} a6 {[%clk 01:38:05]} {[%emt 00:02:18]} 8. Bxc6+ {[%clk
01:35:38]} {[%emt 00:02:06]} bxc6 {[%clk 01:38:22]} {[%emt 00:00:13]} 9. O-O
{[%clk 01:33:14]} {[%emt 00:02:53]} Bd6 {[%clk 01:36:37]} {[%emt 00:02:15]} 10.
dxc5 {[%clk 01:28:22]} {[%emt 00:05:23]} Bxc5 {[%clk 01:33:26]} {[%emt
00:03:41]} 11. Qc2 {[%clk 01:28:46]} {[%emt 00:00:06]} Bd6 {[%clk 01:24:37]}
{[%emt 00:09:19]} 12. e4 {[%clk 01:25:20]} {[%emt 00:03:56]} Be7 {[%clk
01:18:51]} {[%emt 00:06:15]} 13. Nd4 {[%clk 01:16:25]} {[%emt 00:09:25]} Qb6
{[%clk 01:05:23]} {[%emt 00:13:58]} 14. Na4 {[%clk 01:11:56]} {[%emt 00:05:00]}
Qxd4 {[%clk 00:35:53]} {[%emt 00:30:00]} 15. Qxc6+ {[%clk 01:12:11]} {[%emt
00:00:15]} Bd7 {[%clk 00:36:13]} {[%emt 00:00:10]} 16. Qxa8+ {[%clk 01:12:25]}
{[%emt 00:00:17]} Bd8 {[%clk 00:36:34]} {[%emt 00:00:08]} 17. Nc3 {[%clk
01:09:03]} {[%emt 00:03:52]} dxe4 {[%clk 00:33:25]} {[%emt 00:03:39]} 18. Bg5
{[%clk 01:04:53]} {[%emt 00:04:40]} O-O {[%clk 00:32:47]} {[%emt 00:01:08]} 19.
Rad1 {[%clk 01:04:54]} {[%emt 00:00:29]} Qe5 {[%clk 00:32:08]} {[%emt
00:01:09]} 20. Bxf6 {[%clk 01:04:44]} {[%emt 00:00:40]} Bxf6 {[%clk 00:32:30]}
{[%emt 00:00:09]} 21. Qxe4 {[%clk 01:04:59]} {[%emt 00:00:15]} Be6 {[%clk
00:32:18]} {[%emt 00:00:42]} 22. Qxe5 {[%clk 01:04:25]} {[%emt 00:01:04]} Bxe5
{[%clk 00:32:39]} {[%emt 00:00:09]} 23. f4 {[%clk 01:04:02]} {[%emt 00:00:53]}
Bxc3 {[%clk 00:32:55]} {[%emt 00:00:15]} 24. bxc3 {[%clk 01:04:27]} {[%emt
00:00:05]} Bxa2 {[%clk 00:33:13]} {[%emt 00:00:12]} 25. Rd4 {[%clk 01:04:36]}
{[%emt 00:00:20]} Rc8 {[%clk 00:32:58]} {[%emt 00:00:45]} 26. Rfd1 {[%clk
01:03:21]} {[%emt 00:01:45]} g6 {[%clk 00:32:52]} {[%emt 00:00:36]} 27. Rd8+
{[%clk 01:03:46]} {[%emt 00:00:05]} Rxd8 {[%clk 00:33:10]} {[%emt 00:00:12]} 28.
Rxd8+ {[%clk 01:04:12]} {[%emt 00:00:04]} Kg7 {[%clk 00:33:26]} {[%emt
00:00:14]} 29. Kf2 {[%clk 01:04:36]} {[%emt 00:00:07]} 1-0

[Event "Masters Tournament (MTO)"]
[Site "Biel, Switzerland"]
[Date "2026.07.13"]
[Round "1.2"]
[White "Ragavan, Samarth Rajesh"]
[Black "Acs, Peter"]
[Result "0-1"]
[TimeControl "100+30+30sec/move"]
[WhiteTitle "-"]
[BlackTitle "-"]
[WhiteFideId "39918106"]
[BlackFideId "708020"]
[WhiteElo "2106"]
[BlackElo "2561"]

1. d4 {[%clk 01:40:57]} {[%emt 00:00:03]} Nf6 {[%clk 01:40:28]} {[%emt
00:00:33]} 2. c4 {[%clk 01:41:17]} {[%emt 00:00:09]} g6 {[%clk 01:40:17]}
{[%emt 00:00:41]} 3. g3 {[%clk 01:40:36]} {[%emt 00:01:10]} Bg7 {[%clk
01:40:27]} {[%emt 00:00:21]} 4. Bg2 {[%clk 01:40:49]} {[%emt 00:00:17]} O-O
{[%clk 01:40:35]} {[%emt 00:00:23]} 5. Nc3 {[%clk 01:41:05]} {[%emt 00:00:13]}
d6 {[%clk 01:40:28]} {[%emt 00:00:37]} 6. Nf3 {[%clk 01:40:46]} {[%emt
00:00:48]} Nbd7 {[%clk 01:40:16]} {[%emt 00:00:43]} 7. O-O {[%clk 01:40:32]}
{[%emt 00:00:44]} e5 {[%clk 01:40:04]} {[%emt 00:00:43]} 8. e4 {[%clk
01:40:47]} {[%emt 00:00:15]} exd4 {[%clk 01:39:47]} {[%emt 00:00:47]} 9. Nxd4
{[%clk 01:41:06]} {[%emt 00:00:10]} Re8 {[%clk 01:39:41]} {[%emt 00:00:35]} 10.
Re1 {[%clk 01:36:03]} {[%emt 00:05:34]} a6 {[%clk 01:39:28]} {[%emt 00:00:43]}
11. h3 {[%clk 01:34:08]} {[%emt 00:02:24]} Rb8 {[%clk 01:38:31]} {[%emt
00:01:27]} 12. f4 {[%clk 01:23:52]} {[%emt 00:10:47]} Nc5 {[%clk 01:27:32]}
{[%emt 00:11:29]} 13. b4 {[%clk 01:22:40]} {[%emt 00:01:42]} Ne6 {[%clk
01:23:36]} {[%emt 00:04:26]} 14. Be3 {[%clk 01:22:35]} {[%emt 00:00:34]} Nh5
{[%clk 01:04:31]} {[%emt 00:19:36]} 15. Kh2 {[%clk 01:20:03]} {[%emt 00:03:03]}
c5 {[%clk 01:02:26]} {[%emt 00:02:35]} 16. bxc5 {[%clk 01:17:56]} {[%emt
00:02:36]} Nxc5 {[%clk 01:00:59]} {[%emt 00:01:58]} 17. Qc2 {[%clk 01:18:04]}
{[%emt 00:00:22]} Bd7 {[%clk 00:51:01]} {[%emt 00:10:28]} 18. Rad1 {[%clk
01:16:17]} {[%emt 00:02:17]} Qc8 {[%clk 00:49:50]} {[%emt 00:01:41]} 19. Nde2
{[%clk 01:08:28]} {[%emt 00:08:19]} Bf8 {[%clk 00:43:57]} {[%emt 00:06:23]} 20.
g4 {[%clk 00:57:15]} {[%emt 00:11:42]} Ng7 {[%clk 00:44:14]} {[%emt 00:00:14]}
21. Bxc5 {[%clk 00:55:07]} {[%emt 00:02:38]} Qxc5 {[%clk 00:43:26]} {[%emt
00:01:18]} 22. Nd5 {[%clk 00:55:12]} {[%emt 00:00:25]} Red8 {[%clk 00:41:51]}
{[%emt 00:02:06]} 23. Nf6+ {[%clk 00:53:09]} {[%emt 00:02:33]} Kh8 {[%clk
00:39:59]} {[%emt 00:02:23]} 24. Nxd7 {[%clk 00:53:01]} {[%emt 00:00:38]} Rxd7
{[%clk 00:40:23]} {[%emt 00:00:06]} 25. Rd5 {[%clk 00:53:22]} {[%emt 00:00:08]}
Qc7 {[%clk 00:38:51]} {[%emt 00:02:02]} 26. Qd3 {[%clk 00:52:43]} {[%emt
00:01:09]} Rdd8 {[%clk 00:36:11]} {[%emt 00:03:10]} 27. Rd1 {[%clk 00:51:21]}
{[%emt 00:01:51]} Ne6 {[%clk 00:33:38]} {[%emt 00:03:04]} 28. f5 {[%clk
00:45:20]} {[%emt 00:06:30]} Nc5 {[%clk 00:33:58]} {[%emt 00:00:10]} 29. Qc3+
{[%clk 00:35:51]} {[%emt 00:09:59]} Kg8 {[%clk 00:34:22]} {[%emt 00:00:06]} 30.
Nf4 {[%clk 00:33:15]} {[%emt 00:03:06]} Bh6 {[%clk 00:33:07]} {[%emt 00:01:42]}
31. Qg3 {[%clk 00:33:17]} {[%emt 00:00:30]} Bg7 {[%clk 00:24:41]} {[%emt
00:08:57]} 32. g5 {[%clk 00:33:02]} {[%emt 00:00:46]} Re8 {[%clk 00:24:40]}
{[%emt 00:00:31]} 33. f6 {[%clk 00:29:24]} {[%emt 00:04:07]} Bf8 {[%clk
00:25:09]} {[%emt 00:00:02]} 34. R5d4 {[%clk 00:27:48]} {[%emt 00:02:06]} Qa5
{[%clk 00:23:35]} {[%emt 00:02:04]} 35. Nd5 {[%clk 00:27:47]} {[%emt 00:00:31]}
Qxa2 {[%clk 00:23:11]} {[%emt 00:00:54]} 36. Ne7+ {[%clk 00:25:24]} {[%emt
00:02:54]} Bxe7 {[%clk 00:20:51]} {[%emt 00:02:49]} 37. fxe7 {[%clk 00:25:49]}
{[%emt 00:00:05]} Ne6 {[%clk 00:20:59]} {[%emt 00:00:22]} 38. Rxd6 {[%clk
00:25:41]} {[%emt 00:00:38]} Qxc4 {[%clk 00:18:35]} {[%emt 00:02:53]} 39. Rd7
{[%clk 00:25:56]} {[%emt 00:00:15]} b5 {[%clk 00:07:42]} {[%emt 00:11:22]} 40.
Qa3 {[%clk 00:13:10]} {[%emt 00:13:16]} b4 {[%clk 00:04:20]} {[%emt 00:03:52]}
41. Qa5 {[%clk 00:13:21]} {[%emt 00:00:19]} Qc8 {[%clk 00:26:58]} {[%emt
00:07:52]} 42. e5 {[%clk 00:39:00]} {[%emt 00:04:52]} b3 {[%clk 00:25:40]}
{[%emt 00:01:47]} 43. Bb7 {[%clk 00:36:57]} {[%emt 00:02:33]} Qc2+ {[%clk
00:15:27]} {[%emt 00:10:44]} 44. R1d2 {[%clk 00:37:05]} {[%emt 00:00:22]} Qf5
{[%clk 00:15:37]} {[%emt 00:00:19]} 45. Rd8 {[%clk 00:30:44]} {[%emt 00:06:51]}
Qf4+ {[%clk 00:15:37]} {[%emt 00:00:31]} 46. Kh1 {[%clk 00:31:00]} {[%emt
00:00:14]} b2 {[%clk 00:14:52]} {[%emt 00:01:15]} 47. Rxe8+ {[%clk 00:30:33]}
{[%emt 00:00:57]} Rxe8 {[%clk 00:15:15]} {[%emt 00:00:07]} 48. Rxb2 {[%clk
00:31:00]} {[%emt 00:00:03]} Qc1+ {[%clk 00:15:30]} {[%emt 00:00:15]} 0-1

[Event "Masters Tournament (MTO)"]
[Site "Biel, Switzerland"]
[Date "2026.07.13"]
[Round "1.3"]
[White "Ghosh, Diptayan"]
[Black "Papaux, Jeremie"]
[Result "1-0"]
[TimeControl "100+30+30sec/move"]
[WhiteTitle "-"]
[BlackTitle "-"]
[WhiteFideId "5045207"]
[BlackFideId "1340867"]
[WhiteElo "2554"]
[BlackElo "2102"]

1. c4 {[%clk 01:35:55]} {[%emt 00:05:03]} e6 {[%clk 01:40:20]} {[%emt
00:00:40]} 2. Nc3 {[%clk 01:36:11]} {[%emt 00:00:13]} d5 {[%clk 01:40:41]}
{[%emt 00:00:09]} 3. d4 {[%clk 01:36:24]} {[%emt 00:00:17]} Be7 {[%clk
01:40:58]} {[%emt 00:00:13]} 4. cxd5 {[%clk 01:35:23]} {[%emt 00:01:31]} exd5
{[%clk 01:41:19]} {[%emt 00:00:08]} 5. Bf4 {[%clk 01:35:48]} {[%emt 00:00:05]}
c6 {[%clk 01:41:45]} {[%emt 00:00:05]} 6. e3 {[%clk 01:36:04]} {[%emt
00:00:14]} Bf5 {[%clk 01:42:05]} {[%emt 00:00:11]} 7. g4 {[%clk 01:33:46]}
{[%emt 00:02:48]} Be6 {[%clk 01:39:09]} {[%emt 00:03:25]} 8. Bd3 {[%clk
01:27:08]} {[%emt 00:07:08]} g5 {[%clk 01:24:29]} {[%emt 00:15:09]} 9. Be5
{[%clk 01:18:33]} {[%emt 00:09:06]} f6 {[%clk 01:21:25]} {[%emt 00:03:34]} 10.
Bg3 {[%clk 01:17:34]} {[%emt 00:01:29]} Qd7 {[%clk 01:20:57]} {[%emt 00:00:58]}
11. h3 {[%clk 01:13:10]} {[%emt 00:04:54]} Bd6 {[%clk 01:20:03]} {[%emt
00:01:24]} 12. Nge2 {[%emt 00:04:40]} Ne7 {[%clk 01:18:19]} 13. Qb3 {[%clk
01:00:05]} {[%emt 00:11:38]} b5 {[%clk 01:14:33]} {[%emt 00:04:17]} 14. Bxd6
{[%clk 00:53:36]} {[%emt 00:06:59]} Qxd6 {[%clk 01:14:51]} {[%emt 00:00:11]} 15.
Ng3 {[%clk 00:54:03]} {[%emt 00:00:04]} Nd7 {[%clk 01:12:49]} {[%emt 00:02:33]}
16. Qc2 {[%clk 00:53:44]} {[%emt 00:00:49]} Nf8 {[%clk 01:06:30]} {[%emt
00:06:49]} 17. Nh5 {[%clk 00:51:02]} {[%emt 00:03:12]} Kf7 {[%clk 01:05:57]}
{[%emt 00:01:02]} 18. f4 {[%clk 00:51:25]} {[%emt 00:00:08]} gxf4 {[%clk
01:04:07]} {[%emt 00:02:21]} 19. exf4 {[%clk 00:42:54]} {[%emt 00:09:01]} Bd7
{[%clk 00:58:42]} {[%emt 00:05:53]} 20. f5 {[%clk 00:34:16]} {[%emt 00:09:09]}
c5 {[%clk 00:54:53]} {[%emt 00:04:19]} 21. dxc5 {[%clk 00:34:11]} {[%emt
00:00:35]} Qxc5 {[%clk 00:54:48]} {[%emt 00:00:35]} 22. Qf2 {[%clk 00:28:34]}
{[%emt 00:06:06]} Qxf2+ {[%clk 00:50:28]} {[%emt 00:04:50]} 23. Kxf2 {[%clk
00:28:53]} {[%emt 00:00:11]} a6 {[%clk 00:49:09]} {[%emt 00:01:50]} 24. Rhe1
{[%clk 00:23:48]} {[%emt 00:05:35]} Bc6 {[%clk 00:45:42]} {[%emt 00:03:56]} 25.
Rad1 {[%clk 00:22:55]} {[%emt 00:01:23]} Nd7 {[%clk 00:33:20]} {[%emt
00:12:53]} 26. Re6 {[%clk 00:22:54]} {[%emt 00:00:30]} Bb7 {[%clk 00:31:35]}
{[%emt 00:02:15]} 27. Bc2 {[%clk 00:21:17]} {[%emt 00:02:07]} Rhe8 {[%clk
00:23:56]} {[%emt 00:08:09]} 28. Ne4 {[%clk 00:18:42]} {[%emt 00:03:05]} Nxf5
{[%clk 00:20:36]} {[%emt 00:03:51]} 29. gxf5 {[%clk 00:18:58]} {[%emt
00:00:13]} Rxe6 {[%clk 00:21:01]} {[%emt 00:00:05]} 30. fxe6+ {[%clk 00:19:25]}
{[%emt 00:00:03]} Kxe6 {[%clk 00:21:19]} {[%emt 00:00:11]} 31. Nc3 {[%clk
00:19:48]} {[%emt 00:00:07]} Nb6 {[%clk 00:20:53]} {[%emt 00:00:55]} 32. Bxh7
{[%clk 00:19:19]} {[%emt 00:00:59]} Nc4 {[%clk 00:20:00]} {[%emt 00:01:23]} 33.
b3 {[%clk 00:19:26]} {[%emt 00:00:23]} Ne5 {[%clk 00:19:42]} {[%emt 00:00:47]}
34. Nf4+ {[%clk 00:19:46]} {[%emt 00:00:11]} Kf7 {[%clk 00:19:53]} {[%emt
00:00:19]} 35. Bf5 {[%clk 00:20:05]} {[%emt 00:00:10]} Bc8 {[%clk 00:20:03]}
{[%emt 00:00:21]} 36. Bb1 {[%clk 00:18:51]} {[%emt 00:01:44]} Bb7 {[%clk
00:18:28]} {[%emt 00:02:05]} 37. Ncxd5 {[%clk 00:19:00]} {[%emt 00:00:20]} Rg8
{[%clk 00:18:22]} {[%emt 00:00:34]} 38. Ne3 {[%clk 00:19:10]} {[%emt 00:00:20]}
Bf3 {[%clk 00:18:24]} {[%emt 00:00:28]} 39. Rd6 {[%clk 00:18:43]} {[%emt
00:00:58]} Rc8 {[%clk 00:18:20]} {[%emt 00:00:33]} 40. Nd3 {[%clk 00:18:37]}
{[%emt 00:00:37]} Nxd3+ {[%clk 00:18:00]} {[%emt 00:00:51]} 41. Bxd3 {[%clk
00:19:05]} {[%emt 00:00:02]} 1-0

[Event "Masters Tournament (MTO)"]
[Site "Biel, Switzerland"]
[Date "2026.07.13"]
[Round "1.4"]
[White "Monteverde, Jonathan"]
[Black "Aronyak, Ghosh"]
[Result "0-1"]
[TimeControl "100+30+30sec/move"]
[WhiteTitle "-"]
[BlackTitle "-"]
[WhiteFideId "1314580"]
[BlackFideId "25072846"]
[WhiteElo "2098"]
[BlackElo "2549"]

1. d4 {[%clk 01:40:57]} {[%emt 00:00:02]} Nf6 {[%clk 01:32:58]} {[%emt
00:08:02]} 2. c4 {[%clk 01:41:19]} {[%emt 00:00:08]} e6 {[%clk 01:33:19]}
{[%emt 00:00:09]} 3. Nc3 {[%clk 01:41:43]} {[%emt 00:00:06]} Bb4 {[%clk
01:33:37]} {[%emt 00:00:13]} 4. Qc2 {[%clk 01:42:03]} {[%emt 00:00:10]} O-O
{[%clk 01:32:12]} {[%emt 00:01:55]} 5. Nf3 {[%clk 01:41:39]} {[%emt 00:00:54]}
d6 {[%clk 01:30:20]} {[%emt 00:02:21]} 6. Bd2 {[%clk 01:37:49]} {[%emt
00:04:20]} c5 {[%clk 01:19:31]} {[%emt 00:11:20]} 7. dxc5 {[%clk 01:25:21]}
{[%emt 00:12:58]} Bxc5 {[%clk 01:18:12]} {[%emt 00:01:49]} 8. e3 {[%clk
01:19:08]} {[%emt 00:06:42]} e5 {[%clk 01:13:31]} {[%emt 00:05:12]} 9. Be2
{[%clk 01:16:05]} {[%emt 00:03:33]} h6 {[%clk 01:11:14]} {[%emt 00:02:47]} 10.
O-O {[%clk 01:15:09]} {[%emt 00:01:26]} Qe7 {[%clk 01:10:30]} {[%emt 00:01:14]}
11. Rfd1 {[%clk 01:08:13]} {[%emt 00:07:26]} Nc6 {[%clk 01:09:10]} {[%emt
00:01:50]} 12. Be1 {[%clk 01:05:17]} {[%emt 00:03:25]} Re8 {[%clk 01:02:24]}
{[%emt 00:07:17]} 13. a3 {[%clk 00:59:50]} {[%emt 00:05:57]} e4 {[%clk
00:57:35]} {[%emt 00:05:19]} 14. Nd2 {[%clk 00:53:37]} {[%emt 00:06:42]} Bf5
{[%clk 00:55:58]} {[%emt 00:02:08]} 15. b4 {[%clk 00:51:27]} {[%emt 00:02:41]}
Bb6 {[%clk 00:54:01]} {[%emt 00:02:27]} 16. Nf1 {[%clk 00:51:09]} {[%emt
00:00:47]} Ne5 {[%clk 00:50:36]} {[%emt 00:03:55]} 17. Ng3 {[%clk 00:38:05]}
{[%emt 00:13:34]} Bg6 {[%clk 00:50:13]} {[%emt 00:00:53]} 18. Nd5 {[%clk
00:37:59]} {[%emt 00:00:37]} Nxd5 {[%clk 00:50:27]} {[%emt 00:00:16]} 19. Rxd5
{[%clk 00:38:16]} {[%emt 00:00:13]} Rac8 {[%clk 00:47:28]} {[%emt 00:03:29]} 20.
Qb3 {[%clk 00:35:26]} {[%emt 00:03:20]} Nd3 {[%clk 00:43:39]} {[%emt 00:04:19]}
21. Bg4 {[%clk 00:19:19]} {[%emt 00:16:36]} Rc6 {[%clk 00:38:38]} {[%emt
00:05:32]} 22. Nf5 {[%clk 00:14:47]} {[%emt 00:05:02]} Qc7 {[%clk 00:28:52]}
{[%emt 00:10:16]} 23. c5 {[%clk 00:13:26]} {[%emt 00:01:52]} dxc5 {[%clk
00:26:43]} {[%emt 00:02:40]} 24. Rd7 {[%clk 00:13:14]} {[%emt 00:00:41]} c4
{[%clk 00:26:01]} {[%emt 00:01:12]} 25. Qc3 {[%clk 00:04:28]} {[%emt 00:09:16]}
Qe5 {[%clk 00:23:18]} {[%emt 00:03:13]} 26. Rd5 {[%clk 00:04:51]} {[%emt
00:00:08]} Qxc3 {[%clk 00:18:40]} {[%emt 00:05:08]} 27. Bxc3 {[%clk 00:05:15]}
{[%emt 00:00:06]} Bc7 {[%clk 00:18:31]} {[%emt 00:00:39]} 28. Nd4 {[%clk
00:01:17]} {[%emt 00:04:28]} Rd6 {[%clk 00:18:14]} {[%emt 00:00:47]} 29. Nb5
{[%clk 00:01:18]} {[%emt 00:00:29]} Rxd5 {[%clk 00:16:35]} {[%emt 00:02:09]} 30.
Nxc7 {[%clk 00:01:43]} {[%emt 00:00:04]} Rdd8 {[%clk 00:15:35]} {[%emt
00:01:30]} 31. Nxe8 {[%clk 00:02:03]} {[%emt 00:00:10]} Rxe8 {[%clk 00:16:02]}
{[%emt 00:00:02]} 32. Be2 {[%clk 00:01:36]} {[%emt 00:00:58]} f6 {[%clk
00:16:04]} {[%emt 00:00:29]} 33. Kf1 {[%clk 00:01:00]} {[%emt 00:01:05]} Rd8
{[%clk 00:15:47]} {[%emt 00:00:46]} 34. Rd1 {[%clk 00:01:11]} {[%emt 00:00:20]}
Rd5 {[%clk 00:15:32]} {[%emt 00:00:45]} 35. Bxd3 {[%clk 00:00:46]} {[%emt
00:00:56]} exd3 {[%clk 00:12:34]} {[%emt 00:03:28]} 36. Bd2 {[%clk 00:00:48]}
{[%emt 00:00:28]} Rd6 {[%clk 00:11:40]} {[%emt 00:01:25]} 37. Rc1 {[%clk
00:01:08]} {[%emt 00:00:09]} Bf7 {[%clk 00:11:48]} {[%emt 00:00:22]} 38. e4
{[%clk 00:01:07]} {[%emt 00:00:32]} Ra6 {[%clk 00:11:21]} {[%emt 00:00:57]} 39.
Rc3 {[%clk 00:01:27]} {[%emt 00:00:10]} Kf8 {[%clk 00:11:41]} {[%emt 00:00:09]}
40. f3 {[%clk 00:01:35]} {[%emt 00:00:22]} Ke8 {[%clk 00:11:27]} {[%emt
00:00:43]} 41. Kf2 {[%clk 00:29:28]} {[%emt 00:02:37]} Kd7 {[%clk 00:38:01]}
{[%emt 00:03:56]} 42. Ke3 {[%clk 00:28:53]} {[%emt 00:01:05]} Kc6 {[%clk
00:37:34]} {[%emt 00:00:57]} 43. Be1 {[%clk 00:26:29]} {[%emt 00:02:54]} Kb5
{[%clk 00:37:12]} {[%emt 00:00:53]} 44. Bd2 {[%clk 00:26:44]} {[%emt 00:00:15]}
Rd6 {[%clk 00:35:27]} {[%emt 00:02:15]} 45. g4 {[%clk 00:21:36]} {[%emt
00:05:37]} Ka4 {[%clk 00:33:27]} {[%emt 00:02:31]} 46. h4 {[%clk 00:21:34]}
{[%emt 00:00:32]} h5 {[%clk 00:33:31]} {[%emt 00:00:25]} 47. gxh5 {[%clk
00:18:18]} {[%emt 00:03:46]} Rd8 {[%clk 00:32:26]} {[%emt 00:01:35]} 48. h6
{[%clk 00:18:24]} {[%emt 00:00:24]} gxh6 {[%clk 00:32:36]} {[%emt 00:00:21]} 49.
Rc1 {[%clk 00:17:59]} {[%emt 00:00:55]} Rg8 {[%clk 00:29:36]} {[%emt 00:03:30]}
50. Kf2 {[%clk 00:18:09]} {[%emt 00:00:19]} Kb3 {[%clk 00:27:46]} {[%emt
00:02:20]} 51. Bc3 {[%clk 00:17:57]} {[%emt 00:00:43]} f5 {[%clk 00:27:53]}
{[%emt 00:00:24]} 52. Bd4 {[%clk 00:15:21]} {[%emt 00:03:05]} d2 {[%clk
00:26:02]} {[%emt 00:02:21]} 0-1

[Event "Masters Tournament (MTO)"]
[Site "Biel, Switzerland"]
[Date "2026.07.13"]
[Round "1.5"]
[White "Sasikiran, Krishnan"]
[Black "Schmidt, Florian Pascal"]
[Result "1-0"]
[TimeControl "100+30+30sec/move"]
[WhiteTitle "-"]
[BlackTitle "-"]
[WhiteFideId "5004985"]
[BlackFideId "16256840"]
[WhiteElo "2546"]
[BlackElo "2095"]

1. e4 {[%clk 01:40:56]} {[%emt 00:00:03]} c5 {[%clk 01:40:38]} {[%emt
00:00:23]} 2. Nf3 {[%clk 01:41:04]} {[%emt 00:00:21]} d6 {[%clk 01:40:34]}
{[%emt 00:00:32]} 3. d4 {[%clk 01:40:00]} {[%emt 00:01:35]} cxd4 {[%clk
01:40:44]} {[%emt 00:00:21]} 4. Nxd4 {[%clk 01:40:20]} {[%emt 00:00:10]} Nf6
{[%clk 01:41:00]} {[%emt 00:00:14]} 5. Nc3 {[%clk 01:40:33]} {[%emt 00:00:17]}
a6 {[%clk 01:40:43]} {[%emt 00:00:47]} 6. h3 {[%clk 01:34:16]} {[%emt
00:06:47]} e5 {[%clk 01:39:02]} {[%emt 00:02:11]} 7. Nf3 {[%clk 01:33:05]}
{[%emt 00:01:41]} Be7 {[%clk 01:32:49]} {[%emt 00:06:42]} 8. g4 {[%clk
01:26:24]} {[%emt 00:07:11]} h6 {[%clk 01:29:44]} {[%emt 00:03:35]} 9. Rg1
{[%clk 01:22:18]} {[%emt 00:04:36]} b5 {[%clk 01:16:08]} {[%emt 00:14:06]} 10.
g5 {[%clk 01:15:12]} {[%emt 00:07:36]} hxg5 {[%clk 01:16:18]} {[%emt 00:00:20]}
11. Nxg5 {[%clk 01:12:58]} {[%emt 00:02:44]} Bb7 {[%clk 01:05:16]} {[%emt
00:11:32]} 12. Be3 {[%clk 01:04:20]} {[%emt 00:09:08]} Nbd7 {[%clk 00:57:46]}
{[%emt 00:07:59]} 13. a4 {[%clk 00:57:00]} {[%emt 00:07:51]} b4 {[%clk
00:49:27]} {[%emt 00:08:49]} 14. Bc4 {[%clk 00:52:22]} {[%emt 00:05:08]} O-O
{[%clk 00:46:55]} {[%emt 00:03:01]} 15. Nd5 {[%clk 00:45:03]} {[%emt 00:07:50]}
Nxd5 {[%clk 00:45:47]} {[%emt 00:01:38]} 16. exd5 {[%clk 00:35:37]} {[%emt
00:09:57]} Nf6 {[%clk 00:24:29]} {[%emt 00:21:47]} 17. a5 {[%clk 00:17:23]}
{[%emt 00:18:44]} Qc7 {[%clk 00:18:15]} {[%emt 00:06:43]} 18. Bb3 {[%clk
00:14:35]} {[%emt 00:03:18]} Bc8 {[%clk 00:11:56]} {[%emt 00:06:48]} 19. Qf3
{[%clk 00:07:36]} {[%emt 00:07:29]} Ne8 {[%clk 00:08:35]} {[%emt 00:03:52]} 20.
h4 {[%clk 00:05:21]} {[%emt 00:02:46]} Bd7 {[%clk 00:04:13]} {[%emt 00:04:51]}
21. h5 {[%clk 00:04:18]} {[%emt 00:01:32]} Qc8 {[%clk 00:03:44]} {[%emt
00:01:00]} 22. h6 {[%clk 00:04:15]} {[%emt 00:00:34]} Bf5 {[%clk 00:03:52]}
{[%emt 00:00:21]} 23. hxg7 {[%clk 00:03:11]} {[%emt 00:01:34]} Nxg7 {[%clk
00:04:14]} {[%emt 00:00:08]} 24. Ne4 {[%clk 00:02:43]} {[%emt 00:00:58]} Bxe4
{[%clk 00:03:32]} {[%emt 00:01:12]} 25. Qxe4 {[%clk 00:03:09]} {[%emt
00:00:04]} f5 {[%clk 00:03:56]} {[%emt 00:00:06]} 26. Qxb4 {[%clk 00:02:49]}
{[%emt 00:00:49]} Rb8 {[%clk 00:03:20]} {[%emt 00:01:06]} 27. Bb6 {[%clk
00:02:55]} {[%emt 00:00:24]} Qb7 {[%clk 00:00:48]} {[%emt 00:03:02]} 28. O-O-O
{[%clk 00:02:34]} {[%emt 00:00:51]} Rf6 {[%clk 00:00:38]} {[%emt 00:00:40]} 29.
Rg2 {[%clk 00:01:34]} {[%emt 00:01:30]} Kf7 {[%clk 00:00:39]} {[%emt 00:00:29]}
30. Rdg1 {[%clk 00:01:23]} {[%emt 00:00:40]} Bf8 {[%clk 00:00:49]} {[%emt
00:00:19]} 31. Qh4 {[%clk 00:01:26]} {[%emt 00:00:27]} Rc8 {[%clk 00:00:41]}
{[%emt 00:00:39]} 32. Qh7 {[%clk 00:01:27]} {[%emt 00:00:29]} Ke8 {[%clk
00:00:32]} {[%emt 00:00:39]} 33. Ba4+ {[%clk 00:01:42]} {[%emt 00:00:15]} 1-0